Cogmind - Beta 9.6 @@@ ROGUE MODE // 2020.08.17 @ 18:28:42 Player: Cracklepappy Result: Self-destructed Performance ------------- Evolutions (1) 500 Regions Visited (2) 400 Robots Destroyed (3) 15 Value Destroyed (55) 55 Prototype IDs (3) 60 Alien Tech Used (0) 0 Bonus (0) 0 TOTAL SCORE: 1030 Bonus ------- None Cogmind --------- Core Integrity 271/400 Matter 295/300 Energy 100/100 System Corruption 0% Temperature Cool (0) Movement Rolling (100) Location -9/Materials Parts ------- > --- POWER (1) -------- (None) > --- PROPULSION (2) --- Compact Wheel > --- UTILITY (2) ------ Medium Storage Unit Signal Interpreter > --- WEAPON (4) ------- (None) > --- INVENTORY (8) ---- Light Treads Wheel Compact Wheel Improved Heat Sink Peak State ------------ > --- POWER ------------ Light Ion Engine > --- PROPULSION ------- Compact Wheel Compact Wheel > --- UTILITY ---------- Medium Storage Unit Signal Interpreter > --- WEAPON ----------- EM Pulse Gun Medium Laser Particle Gun > --- INVENTORY -------- Light Treads Wheel Compact Wheel Improved Heat Sink [Rating: 9] Favorites ----------- Power Light Ion Engine Engine Light Ion Engine Propulsion Compact Wheel Wheel Compact Wheel Utility Small Storage Unit Storage Small Storage Unit Processor Signal Interpreter Weapon Medium Laser Energy Gun Medium Laser Ballistic Gun Light Assault Rifle Build | -11 -10 -9 ------- Run | Scr Mat Mat Slots Evolved 2 | . . 2 Power . | . . . Propulsion . | . . . Utility . | . . . Weapon 2 | . . 2 Parts Attached 17 | 6 8 3 Power 2 | 1 . 1 Engine 2 | 1 . 1 Core . | . . . Reactor . | . . . Propulsion 5 | 2 2 1 Treads . | . . . Leg . | . . . Wheel 5 | 2 2 1 Hover . | . . . Flight . | . . . Utility 4 | 1 3 . Device . | . . . Storage 3 | 1 2 . Processor 1 | . 1 . Hackware . | . . . Protection . | . . . Artifact . | . . . Weapon 6 | 2 3 1 Energy Gun 4 | . 3 1 Energy Cannon . | . . . Ballistic Gun 2 | 2 . . Ballistic Cannon . | . . . Launcher . | . . . Special Weapon . | . . . Impact Weapon . | . . . Slashing Weapon . | . . . Piercing Weapon . | . . . Special Melee Weapon . | . . . Unidentified Prototypes . | . . . Parts Lost 9 | . 4 5 Power 2 | . 1 1 Propulsion 3 | . 2 1 Utility . | . . . Weapon 4 | . 1 3 Highest Loss Streak 5 | . 3 5 Average Slot Usage (%) 83 | . 87 77 Engine 11 | . 13 9 Wheel 20 | . 20 20 Storage 17 | . 21 11 Processor 5 | . 2 11 Energy Gun 22 | . 20 26 Ballistic Gun 5 | . 8 . Naked Turns . | . . . Heaviest Build 18 | 9 15 18 Greatest Support 32 | 26 32 32 Greatest Overweight (x) 4 | . 4 . Average Overweight (x) . | . . . Largest Inventory Capacity 8 | 6 8 8 Average Capacity 6 | 5 6 8 Most Carried 7 | 6 7 6 Average Carried 5 | 4 5 4 Final Capacity 8 | 6 8 8 Final Carried 7 | 6 7 4 Class Distribution -------------------- 100% | Mutant Dominant Class ---------------- Mutant | -10/Materials Mutant | -9/Materials Resources | -11 -10 -9 ----------- Run | Scr Mat Mat Matter Collected 329 | 264 65 . Remotely . | . . . Salvage Created 201 | 96 105 . Parts 9 | 3 6 . Haulers Intercepted 1 | . 1 . Recyclers Shooed . | . . . Parts Field Recycled . | . . . Retrieved Matter . | . . . Parts Self-Destructed . | . . . Prevented . | . . . Kills | -11 -10 -9 ------- Run | Scr Mat Mat Combat Hostiles Destroyed 1 | . 1 . Guns 1 | . 1 . Classes Destroyed 3 | 1 2 . Hauler 1 | . 1 . Recycler 1 | 1 . . Grunt 1 | . 1 . Best Kill Streak 1 | 1 1 . Combat Bots Only 1 | . 1 . Max Kills in Single Turn 1 | 1 1 . Gunslinging . | . . . Exploded . | . . . Melee . | . . . Uniques/NPCs Destroyed . | . . . Combat | -11 -10 -9 -------- Run | Scr Mat Mat Damage Taken 574 | . 295 279 Core 202 | . 73 129 Absorbed by Shields . | . . . Core Remaining (%) 85 | 100 70 . Volleys Fired 28 | 2 17 9 Largest 2 | 2 2 2 Hottest 105 | 40 100 105 Shots Fired 43 | 4 25 14 Gun 43 | 4 25 14 Cannon . | . . . Launcher . | . . . Special . | . . . Kinetic 4 | 4 . . Thermal 24 | . 16 8 Explosive . | . . . Electromagnetic 15 | . 9 6 Robot Hit Streak 4 | 3 4 4 Robot Miss Streak 4 | . 3 4 Penetration Max . | . . . Secondary Targets 1 | . 1 . Max Gunslinging Chain 1 | . 1 . Shots Hit Robots 25 | 3 16 6 Core Hits 8 | 2 5 1 Critical Hits . | . . . Critical Kills . | . . . Critical Parts Destroyed . | . . . Melee Attacks . | . . . Impact . | . . . Slashing . | . . . Piercing . | . . . Sneak Attacks . | . . . Combat Hostiles . | . . . Follow-up Attacks . | . . . Damage Inflicted 402 | 28 270 104 Guns 336 | 28 204 104 Cannons . | . . . Explosions 66 | . 66 . Melee . | . . . Ramming . | . . . Kinetic 28 | 28 . . Thermal 242 | . 165 77 Explosive . | . . . Electromagnetic 132 | . 105 27 Impact . | . . . Slashing . | . . . Piercing . | . . . Highest Corruption . | . . . Average Corruption . | . . . Corruption Purged . | . . . Overload Shots . | . . . Overflow Damage 35 | . 35 . Projectiles . | . . . Explosions 35 | . 35 . Melee . | . . . Knockbacks . | . . . Impact . | . . . Kinetic . | . . . Secondary . | . . . Self-Inflicted Damage . | . . . Shots . | . . . Rammed . | . . . Targets Rammed . | . . . Kicked . | . . . Crushed . | . . . Highest Temperature 342 | . 342 138 Average Temperature 122 | . 152 66 Received Heat Transfer 249 | . 165 84 Effects 2 | . 2 . Interference 2 | . 2 . Siege Activations . | . . . Robots Corrupted . | . . . Combat Hostiles . | . . . Parts Fried . | . . . Impact Corruptions . | . . . Robots Melted . | . . . Combat Hostiles . | . . . Parts Melted . | . . . Heat Transferred 581 | . 396 185 Parts Sabotaged . | . . . Parts Stolen . | . . . Parts Stripped . | . . . Power Chain Reactions 1 | . 1 . Missiles Intercepted . | . . . Alert | -11 -10 -9 ------- Run | Scr Mat Mat Peak Influence 33 | 5 33 15 Average Influence 5 | 1 6 5 Maximum Alert Level . | . . . Low Security (%) 100 | 100 100 100 Level 1 . | . . . Level 2 . | . . . Level 3 . | . . . Level 4 . | . . . Level 5 . | . . . High Security . | . . . Max Security . | . . . Squads Dispatched 1 | . . 1 Investigation . | . . . Extermination . | . . . Reinforcement 1 | . . 1 Assault . | . . . Garrison . | . . . Intercept . | . . . Construction Impeded . | . . . Haulers Reinforced . | . . . Stealth | -11 -10 -9 --------- Run | Scr Mat Mat Distress Signals 1 | . . 1 Communications Jammed . | . . . Distress Signals . | . . . Times Spotted 10 | . 6 4 Peak Tracking Total 3 | . 3 3 Tactical Retreats 1 | . 1 . Traps | -11 -10 -9 ------- Run | Scr Mat Mat Traps Triggered . | . . . Indirectly . | . . . Trap Hack Attempts . | . . . Triggered . | . . . Disarmed . | . . . Reprogrammed . | . . . Reused . | . . . Traps Extracted . | . . . Installed . | . . . Triggered . | . . . Machines | -11 -10 -9 ---------- Run | Scr Mat Mat Machines Disabled . | . . . Max in Single Turn . | . . . Machines Sabotaged . | . . . Garrisons Compromised . | . . . Overloaded Fab Kills . | . . . Fab Network Shutdowns . | . . . Hacking | -11 -10 -9 --------- Run | Scr Mat Mat Machines Accessed 3 | . 2 1 Terminals 3 | . 2 1 Fabricators . | . . . Repair Stations . | . . . Recycling Units . | . . . Scanalyzers . | . . . Garrison Access . | . . . Total Hacks 7 | . 4 3 Successful 2 | . 2 . Failed 5 | . 2 3 Catastrophic 2 | . 1 1 Database Lockouts . | . . . Manual 2 | . 2 . Terminals 7 | . 4 3 Fabricators . | . . . Repair Stations . | . . . Recycling Units . | . . . Scanalyzers . | . . . Garrison Access . | . . . Terminal Hacks 2 | . 2 . Prototype ID Bank 2 | . 2 . Fabricator Hacks . | . . . Repair Station Hacks . | . . . Recycling Unit Hacks . | . . . Scanalyzer . | . . . Garrison Access Hacks . | . . . Unauthorized Hacks . | . . . Terminals . | . . . Fabricators . | . . . Repair Stations . | . . . Recycling Units . | . . . Scanalyzers . | . . . Garrison Access . | . . . Data Cores Recovered . | . . . Used . | . . . Hacking Detections 3 | . 2 1 Full Trace Events . | . . . Feedback Events . | . . . Feedback Blocked . | . . . Robot Schematics Acquired . | . . . Robots Built . | . . . Matter . | . . . Time . | . . . Total Robot Build Rating . | . . . Part Schematics Acquired . | . . . Parts Built . | . . . Matter . | . . . Time . | . . . Total Part Build Rating . | . . . Parts Repaired . | . . . Time . | . . . Parts Recycled . | . . . Recycled Matter . | . . . Retrieved Matter . | . . . Retrieved Components . | . . . Parts Scanalyzed . | . . . Part Schematics Acquired . | . . . Parts Damaged . | . . . Bothacking | -11 -10 -9 ------------ Run | Scr Mat Mat Used RIF Installer . | . . . Robots Hacked . | . . . Non-combat . | . . . Combat . | . . . Robot Hacks Applied . | . . . Relay Couplers Released . | . . . Robots Rewired . | . . . Allies Hacked . | . . . Hacks Repelled . | . . . Allies | -11 -10 -9 -------- Run | Scr Mat Mat Total Allies . | . . . Largest Group . | . . . Highest-Rated Group . | . . . Highest-Rated Ally . | . . . Total Orders . | . . . Ally Attacks . | . . . Total Damage . | . . . Kills . | . . . Allies Corrupted . | . . . Allies Melted . | . . . Intel | -11 -10 -9 ------- Run | Scr Mat Mat Robot Analysis Total . | . . . Derelict Logs Recovered . | . . . Drone Launches . | . . . Drone Recoveries . | . . . Exploration | -11 -10 -9 ------------- Run | Scr Mat Mat Turns Passed 391 | 76 207 108 Spaces Moved 276 | 60 134 82 Core 6 | 4 2 . Treads . | . . . Legs . | . . . Wheels 270 | 56 132 82 Hover . | . . . Flight . | . . . Fastest Speed 50 | 50 90 100 Average Speed 96 | 87 98 100 Slowest Speed 250 | 90 250 100 Overloaded Moves . | . . . Propulsion Burnouts . | . . . Robots Hopped . | . . . Cave-ins Triggered . | . . . Exploration Rate (%) 12 | 5 23 8 Regions Visited 2 Branch Regions . Pre-discovered Areas . | . . . Known Exits Taken 1 | . 1 . Unknown Exits Taken 1 | 1 . . Scrap Searched . | . . . Spaces Dug . | . . . Terrain Destroyed 2 | . 2 . Melee . | . . . Projectile . | . . . AOE 2 | . 2 . Actions | -11 -10 -9 --------- Run | Scr Mat Mat Total 361 | 83 184 94 Wait 13 | . 13 . Move 274 | 59 133 82 Hop . | . . . Pick Up 20 | 14 6 . Fast Attach 4 | . 4 . Attach 11 | 6 2 3 Detach . | . . . Swap 2 | . 2 . Drop 9 | 2 7 . Fire 28 | 2 17 9 Melee . | . . . Ram . | . . . Kick . | . . . Crush . | . . . Escape Stasis . | . . . Rewire . | . . . Trap . | . . . Miscellaneous . | . . . Route ------- -11/Scrapyard -10/Materials -9/Materials History --------- Turn | Location | Event 30 | -11/Scrapyard | Discovered new exit (range 15) 77 | -11/Scrapyard | Entered Materials 228 | -10/Materials | Lost 3 parts (2n1w) 268 | -10/Materials | Discovered new exit (range 15) 283 | -10/Materials | Identified exit to Materials 284 | -10/Materials | Entered another Materials area 284 | -9/Materials | Evolved 2 slots: Weapon x2 307 | -9/Materials | Build established: Mutant 392 | -9/Materials | Self-destructed Last Messages --------------- 00262_ R-06 Scavenger collects Weight Redist. System. 00264_ R-06 Scavenger collects Signal Interpreter. 00268_ EXIT=FOUND 00279_ Lgt. Ion Engine destroyed. 00283_ EXIT=IDENTIFIED: MATERIALS PARAMETERS=WEAPON_2 LOCATION=MATERIALS GOAL=ESCAPE 00314_ Connecting with Terminal... 00331_ O-16 Technician sends out distress signal. 00331_ O-16 Technician: "IFF HANDSHAKE FAILED. SECURING TERMINAL." 00334_ ALERT: Hostiles spotted, dispatching reinforcements to Terminal M012. 00365_ Door malfunctions. 00368_ EM Pulse Gun destroyed. 00371_ Med. Laser destroyed. 00371_ Com. Wheel destroyed. 00373_ Particle Gun destroyed. 00377_ Lgt. Ion Engine destroyed. 00386_ K-01 Serf collects debris. Map ----- +----------------------------------------------------+ | ?????????????????????????????????????????????????? | | ?????????????????????????????????????????????????? | | ?????????????????????????????????????????????????? | | ?????????????????????????????????????????????????? | | ?????????????????????????????????????????????????? | | ?????????????????????????????????????????????????? | | ??????????????????????????????? ?????????????? | | ?????????????????????????????# ?????????????? | | ?????????????????????????????# ?????????????? | | ?????????????????????????????# ?????????????? | | ?????????????????????????????? ?????????????? | | ?????????????????????????????? ?????????????? | | ?????????????????????????????? ??????????????? | | ??????????????????????????????# ?????????????? | | ??????????????????????????????# ?????????????? | | ??????????????????????????????# ?????????????? | | ??????????????????????????????# ??????????????? | | ??????????????????????????????# ??????????????? | | ??????????????????????????????# #??????????????? | | ??????????????????????????????# #??????????????? | | ??????????????????????????????# ########???????? | | ??????????????????????????????# # #???????? | | ??????????????????????????????# + #???????? | | ??????????????????????????????# # #???????? | | ???????????????????????###+#### # #???????? | | ?????????#! #+#+####### @ ## # #???????? | | ?????????#! # #???????? | | ?????????#! T u + #???????? | | ?????????#! # #???????? | | ??????????#!!###+####### #### # #???????? | | ???????????????????????##l g#####/# #???????? | | ????????????????????????# # # #???????? | | ????????????????????????# # # #???????? | | ????????????????????????# # # #???????? | | ????????????????????????# # ########???????? | | ????????????????????????# # #??????????????? | | ?????????????????######## g/ #??????????????? | | ?????????????????# + # #??????????????? | | ?????????????????# """ # # #??????????????? | | ?????????????????# """ # # #??????????????? | | ?????????????????# """ # # #??????????????? | | ?????????????????# # # #??????????????? | | ?????????????????# # # #??????????????? | | ?????????????????######## #######??????????????? | | ????????????????????????# #????????????????????? | | ????????????????????????#####????????????????????? | | ?????????????????????????????????????????????????? | | ?????????????????????????????????????????????????? | | ?????????????????????????????????????????????????? | | ?????????????????????????????????????????????????? | +----------------------------------------------------+ Best States ------------- Heat Dissipation 28 Energy Generation 10 Energy Capacity 525 Matter Stores 300 Matter Capacity 300 Sight Range 16 Terrain Scan Density 10 Evasion (%) 42 Item Schematics ----------------- None Robot Schematics ------------------ None Fabricated ------------ Nothing Alien Tech Used ----------------- None Achievements -------------- None Challenges ------------ None Game ------ Seed FluxDeliveryBoregun Manual? 0 Play Time 00:06:31 Cumulative 88.5 hours Start 2020.08.17 @ 18:19:46 End 2020.08.17 @ 18:28:42 Sessions 1 Manual Loads 0 Difficulty Rogue Special Mode None Game No. 112 Rogue 112 Adventurer 0 Explorer 0 Win Type - Total 1 Types 1/0/0/0/0/0/0 Lore% 47 Gallery% 57 Achievement% 44 Wizard Run 0 Options --------- ASCII 0 Keyboard 0 Movement Numpad Keybinds 0 Fullscreen 2 Font 24/Smallcaps Map View 76x50 Tactical HUD 1 Map Filters NONE Filters NONE Steam 1 RUN: ac521583-9fb8-4010-af6b-6fe0294d4af0